[Event "XII Cracow ICC-A 2024"]
[Site "Krakow"]
[Date "2024.06.23"]
[Round "2.12"]
[White "Samunenkov, Ihor"]
[Black "Donker, Roel"]
[Result "1-0"]
[ECO "D10"]
[WhiteElo "2532"]
[BlackElo "2270"]
[Annotator "TA"]
[PlyCount "59"]
[EventDate "2024.06.20"]
[EventType "swiss"]
[EventCountry "POL"]
[SourceTitle "playchess.com"]
[Source "ChessBase"]
[SourceQuality "1"]
[TimeControl "40/5400+30:1800+30"]

{[%evp 12,59,25,8,10,14,31,1,9,10,44,20,10,16,12,24,53,49,42,48,43,39,49,35,104,95,144,137,141,145,175,159,668,660,651,656,748,743,719,717,881,887,957,910,956,863,953,904,1330,1290]} 1. d4 d5 {[%emt 0:01:28]} 2. c4 {[%emt 0:00:27]} c6 {[%emt 0:01:11]} 3. cxd5 {[%emt 0:00:17]} cxd5 {[%emt 0:00:07]} 4. Bf4 {[%emt 0:00:12]} Nc6 {[%emt 0:00:08]} 5. e3 {[%emt 0:00:08]} Nf6 {[%emt 0:01:00]} 6. Nc3 {[%emt 0:00:09]} a6 {[%emt 0:00:26]} 7. Be2 {[%emt 0:00:12]} Bf5 {[%emt 0:00:48]} 8. Nf3 {[%emt 0:00:12]} Nh5 {[%emt 0:00:36]} 9. Be5 {[%emt 0:14:28] [#] Nh4 would now be deadly.} e6 {[%emt 0:00:50] The position is equal.} 10. Qb3 {[%emt 0:00:37]} f6 {[%emt 0:09:02]} 11. Qxb7 {[%emt 0:02:53]} (11. Nh4 $5 Bg6 12. Bg3 $11 (12. Qxb7 Na5 $14)) 11... Na5 {[%emt 0:08:01]} 12. Bc7 {[%emt 0:00:27]} Nxb7 {[%emt 0:00:50]} 13. Bxd8 {[%emt 0:00:10]} Kxd8 {[%emt 0:02:45]} 14. Nd2 {[%emt 0:01:48][%cal Og2g4,Bf3d2,Bd2b3,Bb3d4][%mdl 32]} g6 {[%emt 0:12:12]} 15. g4 {[%emt 0:00:27]} Ng7 {[%emt 0:00:14]} 16. gxf5 {[%emt 0:03:40]} Nxf5 {[%emt 0:00:03]} 17. Rc1 {[%emt 0:04:46]} Bh6 {[%emt 0:19:15]} (17... Bd6 $14) 18. Nb3 {[%emt 0:05:46]} Kd7 {[%emt 0:24:16]} (18... Nbd6 $142) 19. Na4 $16 {[%emt 0:06:35]} Kd6 {[%emt 0:00:30]} 20. Nb6 {[%emt 0:13:45] Repels Rhc8} Rab8 {[%emt 0:00:06][%cal Ob7a5]} 21. Bxa6 {[%emt 0:00:27]} Nxd4 $2 {[%emt 0:04:05] A mistake that costs the game.} (21... Ne7 $16 22. O-O Nd8) 22. Nxd4 $18 {[%emt 0:05:50] White is clearly winning.} Nc5 {[%emt 0:00:08][%cal Bb7c5,Bc5a6,Ba6b4][%mdl 32] [#]} 23. b4 $1 {[%emt 0:01:41]} Nxa6 {[%emt 0:01:05]} (23... Nd3+ 24. Bxd3) 24. Rc6+ {[%emt 0:00:13]} Ke7 {[%emt 0:00:23]} 25. Rxe6+ {[%emt 0:00:08] Black is weak on the light squares} Kf7 {[%emt 0:00:13]} 26. Nxd5 {[%emt 0:00:25]} (26. Nd7 Rxb4 27. Rxf6+ (27. Rxa6 Rb1+ 28. Ke2 Rxh1 $17) 27... Ke7 28. Rxa6 Rb1+ 29. Ke2 Rxh1 $14) 26... Nxb4 {[%emt 0:00:59]} 27. Re7+ {[%emt 0:01:40]} (27. Nxf6 $2 Nc2+ (27... Nxa2 28. Nd5 $16) 28. Kf1 Nxd4 $19) (27. Rxf6+ Kg8 28. Nxb4 Rxb4 $18) 27... Kg8 {[%emt 0:00:01]} 28. Nxf6+ {[%emt 0:00:15] A dynamic duo of knights.} Kf8 {[%emt 0:00:06]} 29. Rc7 {[%emt 0:00:31]} ({Inferior is} 29. Rxh7 Rxh7 30. Nxh7+ Kg7 $11) 29... Rb6 {[%emt 0:00:56] Against Ne6+} 30. Nd7+ {[%emt 0:00:09] Weighted Error Value: White=0.07 (flawless) /Black=0.58.  Loses game:     	---       	Black=1      Mistake:       	---       	Black=2      Inaccurate:     	White=1     	Black=2      OK:         	White=6     	Black=7      Best:        	White=1     	---} ({And not} 30. Rxh7 Rxh7 31. Nxh7+ Kg8 $11) 1-0

[Event "XII Cracow ICC-A 2024"]
[Site "Krakow"]
[Date "2024.06.23"]
[Round "2.13"]
[White "Rudzinska, Michalina"]
[Black "Kelires, Andreas"]
[Result "0-1"]
[ECO "B91"]
[WhiteElo "2290"]
[BlackElo "2515"]
[Annotator "TA"]
[PlyCount "78"]
[EventDate "2024.06.20"]
[EventType "swiss"]
[EventCountry "POL"]
[SourceTitle "playchess.com"]
[Source "ChessBase"]
[SourceQuality "1"]
[TimeControl "40/5400+30:1800+30"]

{[%evp 14,78,14,20,28,27,27,27,27,33,29,32,26,18,24,22,40,13,20,22,43,21,28,20,33,0,13,-22,-9,-32,-27,-11,0,0,0,0,0,-113,-112,-115,-121,-118,-114,-105,-55,-99,-99,-157,-156,-443,-170,-177,-148,-169,-139,-139,-140,-153,-151,-132,-145,-676,-665,-636,-642,-594,-591]} 1. e4 {[%emt 0:00:04]} c5 {[%emt 0:00:05]} 2. Nf3 {[%emt 0:00:12]} d6 {[%emt 0:00:09]} 3. d4 {[%emt 0:00:09]} cxd4 {[%emt 0:00:05]} 4. Nxd4 {[%emt 0:00:09]} Nf6 {[%emt 0:00:06]} 5. Nc3 {[%emt 0:00:11]} a6 {[%emt 0:00:04]} 6. g3 {[%emt 0:00:17]} e5 {[%emt 0:00:47]} 7. Nde2 {[%emt 0:00:13]} Be7 {[%emt 0:00:52]} 8. Bg2 {[%emt 0:00:13]} h5 {[%emt 0:01:06][%cal Bh7h5,Bh5h4][%mdl 32]} 9. h3 {[%emt 0:03:34]} Nbd7 {[%emt 0:00:25]} 10. a4 {[%emt 0:01:14]} b6 {[%emt 0:00:30] White has an edge.} 11. Nd5 {[%emt 0:01:38]} Nxd5 {[%emt 0:00:55]} 12. Qxd5 {[%emt 0:00:09]} Rb8 {[%emt 0:00:16]} 13. Be3 {[%emt 0:01:47]} h4 {[%emt 0:06:03]} 14. g4 {[%emt 0:01:58]} O-O {[%emt 0:01:29]} 15. O-O {[%emt 0:04:15]} b5 {[%emt 0:11:06]} 16. axb5 {[%emt 0:10:56]} Rxb5 {[%emt 0:00:14]} 17. Qa2 {[%emt 0:00:48]} Bg5 {[%emt 0:21:50]} 18. Nc3 {[%emt 0:05:53]} Rb8 {[%emt 0:00:07]} 19. Nd5 {[%emt 0:06:57]} Bb7 {[%emt 0:10:01]} 20. Bxg5 {[%emt 0:04:23]} Qxg5 {[%emt 0:00:06]} 21. Rfd1 {[%emt 0:01:46]} Nc5 {[%emt 0:02:52]} 22. Qa3 {[%emt 0:05:43]} Rfd8 {[%emt 0:03:35]} 23. b4 {[%emt 0:06:05]} Ne6 {[%emt 0:01:05]} 24. Qe3 {[%emt 0:01:10]} Bxd5 {[%emt 0:05:34]} 25. Qxg5 {[%emt 0:08:22]} (25. exd5 $11 {remains equal.} Qxe3 26. fxe3) 25... Nxg5 $17 {[%emt 0:00:06]} 26. exd5 {[%emt 0:07:23]} Rxb4 {[%emt 0:04:06]} 27. Rxa6 {[%emt 0:00:10]} g6 {[%emt 0:01:28]} 28. Rc6 {[%emt 0:03:59]} Rb2 {[%emt 0:01:43]} ({Black should play} 28... e4 $17 29. c4 Rb3) 29. Ra1 {[%emt 0:03:24]} e4 {[%emt 0:05:58]} 30. Raa6 {[%emt 0:04:43]} (30. Rc4 $142) 30... Kg7 {[%emt 0:07:35]} 31. Kf1 $2 {[%emt 0:12:03]} (31. Rxd6 $17 Rxd6 32. Rxd6) 31... f5 $2 {[%emt 0:07:37]} (31... Rb1+ $1 32. Ke2 Rdb8) 32. gxf5 $19 {[%emt 0:00:32]} gxf5 {[%emt 0:00:02] Threatens to win with ...f4.} 33. Ke2 {[%emt 0:02:38][%cal Oe2e3]} f4 {[%emt 0:02:29] aiming for ...f3+.} 34. f3 {[%emt 0:03:34] [#]} exf3+ {[%emt 0:00:05]} 35. Bxf3 {[%emt 0:00:04]} Re8+ {[%emt 0:00:05]} ({Don't take} 35... Nxh3 36. Rxd6 Rxc2+ 37. Kd3 Rxd6 38. Rxd6 $11) 36. Kf2 {[%emt 0:00:04] [#]} Re3 $1 {[%emt 0:00:03] Black has more active pieces.} ({Reject} 36... Nxh3+ $6 37. Kf1 $11) 37. Bg4 {[%emt 0:00:36][%mdl 8192]} (37. Bg2 $17) 37... Ne4+ {[%emt 0:00:16] Black is clearly winning.} ({And not} 37... Nxh3+ 38. Bxh3 Rxh3 39. Rc7+ Kf6 40. Rxd6+ Ke5 41. Rdc6 $11) 38. Kg2 {[%emt 0:00:39]} Rg3+ {[%emt 0:00:16]} 39. Kh2 {[%emt 0:00:12]} f3 {[%emt 0:00:25] Weighted Error Value: White=0.37/Black=0.14 (very precise) .  Loses game:     	White=2     	---        Mistake:       	White=2     	Black=2      Inaccurate:     	White=4     	---        OK:         	White=10    	Black=10     Best:        	White=4     	Black=4      Strong:       	---       	Black=1} 0-1

[Event "XII Cracow ICC-A 2024"]
[Site "Krakow"]
[Date "2024.06.23"]
[Round "2.14"]
[White "Vetoshko, Volodymyr"]
[Black "Srinath, Rao S.V."]
[Result "1-0"]
[ECO "E73"]
[WhiteElo "2505"]
[BlackElo "2278"]
[Annotator "TA"]
[PlyCount "53"]
[EventDate "2024.06.20"]
[EventType "swiss"]
[EventCountry "POL"]
[SourceTitle "playchess.com"]
[Source "ChessBase"]
[SourceQuality "1"]
[TimeControl "40/5400+30:1800+30"]

{[%evp 12,53,50,25,24,33,40,44,33,18,43,0,13,0,21,11,14,0,-7,0,7,-25,-18,-10,-10,-8,-9,-78,-76,-85,-98,-107,58,69,591,588,587,563,1058,1055,1038,1101,1040,1027]} 1. d4 {[%emt 0:04:57]} Nf6 {[%emt 0:00:05]} 2. c4 {[%emt 0:00:05]} g6 {[%emt 0:00:03]} 3. Nc3 {[%emt 0:00:06]} Bg7 {[%emt 0:00:04]} 4. e4 {[%emt 0:00:08]} d6 {[%emt 0:00:03]} 5. Be2 {[%emt 0:00:07]} O-O {[%emt 0:00:05]} 6. Be3 {[%emt 0:00:04]} Nc6 {[%emt 0:00:03][%cal Bb8c6,Bc6e5,Be5g4][%mdl 32]} 7. d5 {[%emt 0:05:57]} Ne5 {[%emt 0:00:25]} 8. f4 {[%emt 0:00:07]} Neg4 {[%emt 0:00:04]} 9. Bd2 {[%emt 0:00:06]} Nh6 $1 {[%emt 0:00:04] White is slightly better.} 10. Nf3 {[%emt 0:01:03]} c6 {[%emt 0:00:28]} 11. a4 {[%emt 0:01:10]} e6 {[%emt 0:00:05]} 12. dxe6 {[%emt 0:01:18]} fxe6 {[%emt 0:00:04][%cal Oe6e5]} 13. O-O {[%emt 0:03:02]} e5 {[%emt 0:02:56]} 14. c5 {[%emt 0:10:41]} exf4 {[%emt 0:12:55]} 15. Qb3+ {[%emt 0:26:58]} d5 {[%emt 0:17:59]} 16. Rad1 {[%emt 0:07:48][%cal Oe4d5]} Qe7 $1 {[%emt 0:05:27]} 17. exd5 {[%emt 0:01:06] [#] d6+ is the strong threat.} Qxc5+ {[%emt 0:13:06]} 18. Kh1 {[%emt 0:00:06]} cxd5 {[%emt 0:10:40]} 19. Nxd5 {[%emt 0:09:34]} Nxd5 $17 {[%emt 0:12:10]} (19... Qxd5 $2 {is the wrong capture.} 20. Bc4 Be6 21. Bxd5 Bxd5 22. Qa3 $18 (22. Qd3 Rac8 $18)) 20. Bc4 {[%emt 0:00:45][%cal Od2b4] And now Bb4! would win.} Be6 {[%emt 0:07:15]} 21. Ng5 {[%emt 0:00:29] [#]} Rfc8 $2 {[%emt 0:00:04]} (21... Ne3 $1 $17 22. Bxe6+ Kh8) 22. Rc1 $36 {[%emt 0:01:46][%cal Bd1c1,Bc1c4,Bc4f4][%mdl 2080] White has the initiative.} Qd6 {[%emt 0:02:00][%mdl 8192] Black cannot hold the game after this.} ({Black should play} 22... Qe7 $14 23. Bxd5 Bxd5 24. Qxd5+ Kh8) 23. Nxe6 $1 $18 {[%emt 0:08:19] White is clearly winning.} (23. Qxb7 $2 {loses.} Rcb8 $19) 23... Rxc4 {[%emt 0:00:04]} 24. Qxb7 {[%emt 0:00:25][%csl Ge6][%cal Rb7g7]} Qxe6 {[%emt 0:03:41]} 25. Qxa8+ {[%emt 0:00:19]} ({Inferior is} 25. Rxc4 Re8 26. Rc5 Rd8 $17) 25... Bf8 {[%emt 0:01:08]} 26. Rxc4 {[%emt 0:00:19]} Nb6 {[%emt 0:03:11] Prevents Rc8.} 27. Rcxf4 {[%emt 0:00:40] Weighted Error Value: White=0.13 (very precise) /Black=0.51.  Loses game:     	---       	Black=1      Mistake:       	White=1     	Black=1      Inaccurate:     	White=2     	Black=1      OK:         	White=7     	Black=8      Best:        	White=3     	Black=1      Strong:       	White=1     	Black=2} 1-0

[Event "XII Cracow ICC-A 2024"]
[Site "Krakow"]
[Date "2024.06.23"]
[Round "2.15"]
[White "Lohia, Sohum"]
[Black "Chatalbashev, Boris"]
[Result "1-0"]
[ECO "B06"]
[WhiteElo "2270"]
[BlackElo "2483"]
[Annotator "TA"]
[PlyCount "91"]
[EventDate "2024.06.20"]
[EventType "swiss"]
[EventCountry "POL"]
[SourceTitle "playchess.com"]
[Source "ChessBase"]
[SourceQuality "1"]
[TimeControl "40/5400+30:1800+30"]

{[%evp 9,91,52,52,61,39,35,34,28,60,54,57,41,70,91,83,92,95,82,82,83,76,8,13,24,6,10,15,10,8,8,30,20,24,21,31,20,88,80,76,80,88,90,75,102,87,90,99,96,97,104,97,74,100,98,108,113,113,0,103,0,111,111,111,111,124,117,104,104,379,263,429,410,360,380,688,613,598,590,1098,971,770,673,564,-268]} 1. e4 g6 2. d4 Bg7 3. Nc3 d6 4. Be3 c6 5. f4 Qb6 6. a3 Nf6 {[%cal Of6g4]} 7. Nf3 O-O {[%cal Oc6c5]} 8. h3 {White is slightly better.} e5 (8... Qxb2 $2 9. Na4 $18) 9. fxe5 (9. dxe5 $2 Qxe3+ 10. Qe2 Qxe2+ (10... Qxf4 $2 11. exf6 Bxf6 12. Qf2 $19) 11. Bxe2 Nh5 12. exd6 Nxf4 $19 (12... Bxc3+ $2 13. bxc3 Ng3 14. Rf1 $19)) 9... dxe5 10. Nxe5 Nxe4 11. Nxe4 {[%cal Bc3e4,Be4d6,Bd6c4,Bc4e5,Be5d3,Bd3f4,Bf4e6][%mdl 32] Threatens to win with Nc5.} Bxe5 12. Bc4 Bf5 13. Qd2 $1 Bg7 14. Nd6 {0-0 is the strong threat.} Be6 15. O-O ({Better is} 15. Bxe6 $16 fxe6 16. O-O-O) 15... Bxc4 $11 16. Nxc4 Qd8 17. Rad1 Qd5 {[#]} 18. Ne5 f6 (18... Nd7 19. c4) 19. Nd3 Nd7 20. Nf4 $36 {[%mdl 2048] Black is under pressure.} Qf7 21. d5 cxd5 $1 22. Qxd5 Ne5 (22... Qxd5 $11 23. Rxd5 (23. Nxd5 Rf7 $14) 23... Rf7) 23. Ne6 $16 Rfe8 24. Nc7 {White has more active pieces.} Qxd5 25. Rxd5 Red8 26. Rxe5 $1 fxe5 27. Nxa8 Rxa8 {[%mdl 4096] Endgame. [#] KRB-KRB} 28. Rd1 $1 b5 29. Rd7 a6 30. Kf2 Rf8+ 31. Ke2 Rf7 32. Rd8+ Rf8 33. Rd7 Rf7 $1 34. Rd8+ Rf8 35. Rxf8+ Kxf8 {KB-KB} 36. b3 {[%cal Bb2b3,Bb3b4][%mdl 32]} Ke7 37. Kd3 Kd6 38. c4 bxc4+ $2 {[%mdl 8192] Black cannot hold the game after this.} (38... e4+ $16 39. Kxe4 bxc4) 39. Kxc4 $18 {a4 would now be deadly.} ({Inferior is} 39. bxc4 Bf8 $11) 39... e4 $2 (39... a5 {was necessary.} 40. Bd2 a4 41. bxa4 Kc6) 40. b4 Be5 41. a4 {[%cal Ba3a4,Ba4b5][%mdl 32]} Kc6 $2 (41... Bg3 42. Kd4 (42. b5 axb5+ 43. Kxb5 Kc7 $18) 42... Kc6) 42. Bc5 {White is clearly winning.} Bf4 {[#]} 43. b5+ $1 axb5+ 44. axb5+ Kb7 45. Kd4 e3 {White must now prevent ...e2.} 46. Ke4 $4 {[%mdl 40960] Weighted Error Value: White=0.10 (very precise) /Black=0.32.  Loses game:     	---       	Black=1      Mistake:       	White=1     	Black=3      Inaccurate:     	White=1     	Black=3      OK:         	White=14    	Black=12     Best:        	White=5     	Black=6      Strong:       	White=3     	Black=2     . Sensor Board Error (Ke4/e5)?} (46. Kd3 $18 {was the only winning move.}) 1-0

[Event "XII Cracow ICC-A 2024"]
[Site "Krakow"]
[Date "2024.06.23"]
[Round "2.16"]
[White "Kosakowski, Jakub"]
[Black "Devnani Kush"]
[Result "1-0"]
[ECO "B92"]
[WhiteElo "2480"]
[BlackElo "2250"]
[Annotator "TA"]
[PlyCount "69"]
[EventDate "2024.06.20"]
[EventType "swiss"]
[EventCountry "POL"]
[SourceTitle "playchess.com"]
[Source "ChessBase"]
[SourceQuality "1"]
[TimeControl "40/5400+30:1800+30"]

{[%evp 16,69,13,6,13,10,3,12,30,21,18,35,35,30,36,4,27,22,38,32,45,0,0,0,0,0,15,0,48,64,54,34,30,49,127,0,15,0,0,0,0,0,134,132,129,128,109,124,1107,1102,2730,3199,29972,29972,5389,5018]} 1. e4 {[%emt 0:00:02]} c5 {[%emt 0:00:52]} 2. Nf3 {[%emt 0:00:11]} d6 {[%emt 0:00:14]} 3. d4 {[%emt 0:00:30]} cxd4 {[%emt 0:00:32]} 4. Nxd4 {[%emt 0:00:08]} Nf6 {[%emt 0:00:04]} 5. Nc3 {[%emt 0:00:11]} a6 {[%emt 0:00:10]} 6. Be2 {[%emt 0:04:19]} e5 {[%emt 0:00:07]} 7. Nb3 {[%emt 0:00:09]} Be7 {[%emt 0:00:26]} 8. O-O {[%emt 0:00:13]} O-O {[%emt 0:00:54]} 9. Re1 {[%emt 0:00:17]} Be6 {[%emt 0:01:49]} 10. Be3 {[%emt 0:04:03]} Nbd7 {[%emt 0:04:14]} 11. a4 {[%emt 0:00:12][%cal Ba2a4,Ba4a5][%mdl 32]} Nb6 {[%emt 0:19:21] The position is equal.} 12. a5 {[%emt 0:04:45]} Nc4 {[%emt 0:01:10]} 13. Bxc4 {[%emt 0:10:16]} Bxc4 {[%emt 0:01:21]} 14. Nd2 {[%emt 0:00:33]} Be6 {[%emt 0:04:47]} 15. Na4 {[%emt 0:00:18]} Nd7 {[%emt 0:21:59][%cal Oa8c8]} 16. c4 {[%emt 0:02:48]} Bg5 {[%emt 0:07:13]} 17. Bxg5 {[%emt 0:12:28]} Qxg5 {[%emt 0:00:06]} 18. b3 {[%emt 0:00:42]} Bh3 {[%emt 0:05:22][%csl Gh3][%cal Rg5g2]} 19. g3 {[%emt 0:04:41]} f5 {[%emt 0:06:04]} 20. exf5 $1 {[%emt 0:04:18]} Qxf5 {[%emt 0:00:32]} 21. f3 {[%emt 0:00:26]} Nc5 {[%emt 0:06:23]} (21... h6 $11) 22. Nxc5 $14 {[%emt 0:16:30]} dxc5 {[%emt 0:00:03]} 23. Qe2 {[%emt 0:00:22][%cal Oe2e3]} Rad8 {[%emt 0:01:44]} 24. Ne4 {[%emt 0:00:16]} Qc8 {[%emt 0:11:32]} (24... Qxf3 25. Qxf3 Rxf3 26. Ng5 (26. Nxc5 $2 Rd2 $19) 26... Rxb3 27. Nxh3 $18) (24... Qh5 $1 $14) 25. Nf2 {[%emt 0:04:23]} ({Better is} 25. Rad1 $16) 25... Bd7 $11 {[%emt 0:00:04]} 26. Qxe5 {[%emt 0:04:20] aiming for Qd5+.} Rxf3 {[%emt 0:01:44][%cal Od8f8]} 27. Qd5+ {[%emt 0:07:05]} Rf7 {[%emt 0:00:05]} 28. Re7 {[%emt 0:00:15]} Be8 {[%emt 0:00:29] [#]} (28... Rdf8 $1 $11) 29. Rae1 $1 $16 {[%emt 0:00:09][%cal Od5d8] Black must now prevent Qxd8!} Kf8 {[%emt 0:01:46]} (29... Rxd5 $2 30. Rxe8+ Rf8 (30... Qxe8 $2 31. Rxe8+ Rf8 32. Rxf8+ Kxf8 33. cxd5 $18) 31. Rxc8 Rxc8 32. cxd5 $18) 30. Qe5 {[%emt 0:03:49][%cal Of2d3] White has more active pieces.} h6 {[%emt 0:01:12]} 31. Nd3 $40 {[%emt 0:03:44][%cal Bf2d3,Bd3f4,Bf4g6,Bg6e7,Be7c6][%mdl 160] White goes for the king.} Bc6 $2 {[%emt 0:01:48][%mdl 8192] [#] A mistake that costs the game.} (31... Rxe7 $16 32. Qxe7+ Kg8) 32. Nf4 $1 $18 {[%emt 0:01:31] Intending Rxf7+ and mate.} ({Less strong is} 32. Nxc5 Rxe7 33. Qxe7+ Kg8 34. Qe6+ Qxe6 35. Rxe6 Rd2 $16) 32... Rxe7 {[%emt 0:00:59] [#]} 33. Ng6+ $1 {[%emt 0:00:05]} (33. Qxe7+ Kg8 34. Qxc5 Rd2 $16) 33... Kf7 {[%emt 0:00:24]} 34. Nxe7 {[%emt 0:00:07]} Qg4 {[%emt 0:00:53]} 35. Nxc6 {[%emt 0:00:38] Weighted Error Value: White=0.13 (very precise) /Black=0.36.  Loses game:     	---       	Black=1      Mistake:       	White=1     	Black=3      Inaccurate:     	White=2     	Black=1      OK:         	White=12    	Black=8      Best:        	White=1     	Black=4      Strong:       	White=3     	---} ({Not} 35. Qxc5 Bf3 $16 (35... Rd3 $2 36. Nxc6 bxc6 37. Qxc6 $18)) 1-0

[Event "XII Cracow ICC-A 2024"]
[Site "Krakow"]
[Date "2024.06.23"]
[Round "2.17"]
[White "Oksendal, Martin"]
[Black "Fus, Jakub"]
[Result "0-1"]
[ECO "C95"]
[WhiteElo "2264"]
[BlackElo "2455"]
[Annotator "RC"]
[PlyCount "117"]
[EventDate "2024.06.20"]
[EventType "swiss"]
[EventCountry "POL"]
[SourceTitle "playchess.com"]
[Source "ChessBase"]
[SourceQuality "1"]
[TimeControl "40/5400+30:1800+30"]

1. e4 {[%emt 0:03:51]} e5 {[%emt 0:00:08]} 2. Nf3 {[%emt 0:00:26]} Nc6 {[%emt 0:00:08]} 3. Bb5 {[%emt 0:00:11]} a6 {[%emt 0:00:14]} 4. Ba4 {[%emt 0:00:05]} Nf6 {[%emt 0:00:13]} 5. O-O {[%emt 0:00:11]} Be7 {[%emt 0:00:47]} 6. Re1 {[%emt 0:00:08]} b5 {[%emt 0:00:12]} 7. Bb3 {[%emt 0:00:03]} d6 {[%emt 0:00:46]} 8. c3 {[%emt 0:00:07]} O-O {[%emt 0:00:08]} 9. h3 {[%emt 0:00:07]} Nb8 {[%emt 0:00:10]} 10. d4 {[%emt 0:00:07]} Nbd7 {[%emt 0:00:06]} 11. Nbd2 {[%emt 0:00:27]} Bb7 {[%emt 0:00:25]} 12. Bc2 {[%emt 0:00:11]} Re8 {[%emt 0:01:10]} 13. Nf1 {[%emt 0:00:47]} Bf8 {[%emt 0:00:30]} 14. Ng3 {[%emt 0:00:09]} g6 {[%emt 0:00:35]} 15. a4 {[%emt 0:08:24]} c5 {[%emt 0:13:49]} 16. d5 {[%emt 0:00:40]} c4 {[%emt 0:00:56]} 17. Bg5 {[%emt 0:02:28]} h6 {[%emt 0:00:11]} 18. Be3 {[%emt 0:00:07]} Nc5 {[%emt 0:02:21]} 19. Qd2 {[%emt 0:01:55]} h5 {[%emt 0:00:49]} 20. Bh6 {[%emt 0:05:54]} Nh7 {[%emt 0:03:14]} 21. Bxf8 {[%emt 0:09:55]} Rxf8 {[%emt 0:02:35]} 22. Qh6 {[%emt 0:10:21]} Qf6 {[%emt 0:01:51]} 23. h4 {[%emt 0:04:01]} Rfb8 {[%emt 0:01:13]} 24. Rf1 {[%emt 0:14:03]} Bc8 {[%emt 0:08:27]} 25. Ng5 {[%emt 0:10:31]} Qg7 {[%emt 0:04:03]} 26. Qxg7+ {[%emt 0:00:28]} Kxg7 {[%emt 0:00:04]} 27. Nxh7 {[%emt 0:02:29]} Kxh7 {[%emt 0:00:07]} 28. f4 {[%emt 0:00:59]} Kg7 {[%emt 0:00:31]} 29. Rf2 {[%emt 0:04:46]} b4 {[%emt 0:07:35]} 30. Raf1 {[%emt 0:11:37]} Ra7 {[%emt 0:00:36]} 31. f5 {[%emt 0:01:57]} b3 {[%emt 0:17:51]} 32. Bd1 {[%emt 0:01:33]} Nd3 {[%emt 0:17:35]} 33. Rd2 {[%emt 0:00:21]} Rc7 {[%emt 0:00:29]} 34. Rf3 {[%emt 0:02:00]} Bd7 {[%emt 0:01:12]} 35. Be2 {[%emt 0:00:55]} Nf4 {[%emt 0:03:24]} 36. Bf1 {[%emt 0:00:05]} Bxa4 {[%emt 0:00:20]} 37. Ne2 {[%emt 0:03:08]} Nd3 {[%emt 0:01:02]} 38. Ng3 {[%emt 0:00:17]} Ne1 {[%emt 0:01:15]} 39. Rff2 {[%emt 0:01:03]} Be8 {[%emt 0:00:19]} 40. Be2 {[%emt 0:02:24]} a5 {[%emt 0:10:07]} 41. Rf1 {[%emt 0:10:04]} Nc2 {[%emt 0:00:20]} 42. f6+ {[%emt 0:04:19]} Kh6 {[%emt 0:06:18]} 43. Bxh5 {[%emt 0:03:48]} Ne3 {[%emt 0:00:19]} 44. Re1 {[%emt 0:00:31]} gxh5 {[%emt 0:00:03]} 45. Rxe3 {[%emt 0:00:15]} Bd7 {[%emt 0:00:04]} 46. Rd1 {[%emt 0:01:52]} a4 {[%emt 0:03:08]} 47. Ra1 {[%emt 0:00:06]} Ra7 {[%emt 0:01:01]} 48. Nf1 {[%emt 0:03:18]} Bg4 {[%emt 0:10:35]} 49. Rg3 {[%emt 0:02:42]} a3 {[%emt 0:01:26]} 50. Nd2 {[%emt 0:02:07]} Be2 {[%emt 0:00:04]} 51. Rg7 {[%emt 0:01:16]} Rba8 {[%emt 0:00:46]} 52. Rxa3 {[%emt 0:01:45]} Rxa3 {[%emt 0:00:18]} 53. bxa3 {[%emt 0:00:01]} Ra7 {[%emt 0:02:22]} 54. Rg8 {[%emt 0:03:05]} Rb7 {[%emt 0:00:05]} 55. Rd8 {[%emt 0:01:23]} Rb6 {[%emt 0:00:07]} 56. Kf2 {[%emt 0:00:51]} Bd3 {[%emt 0:00:04]} 57. Nf3 {[%emt 0:00:49]} b2 {[%emt 0:01:14]} 58. Nxe5 {[%emt 0:00:11]} dxe5 {[%emt 0:00:11]} 59. Ke3 0-1